[Event "Late-Titled-Tuesday-Blitz-December-26-2023"]
[Site "Chess.com"]
[Date "2023.12.26"]
[Round "6"]
[White "GMKrikor"]
[Black "CuteSheepCloud"]
[Result "1-0"]
[WhiteElo "2813"]
[BlackElo "2645"]
[TimeControl "180+1"]
[EndTime "15:08:19 PST"]
[Termination "GMKrikor won by resignation"]

1. Nf3 {[%clk 0:03:00.9]} 1... Nf6 {[%clk 0:02:59.8]} 2. c4 {[%clk 0:03:00.4]}
2... e6 {[%clk 0:02:59.8]} 3. Nc3 {[%clk 0:03:00.7]} 3... d5 {[%clk 0:02:59.5]}
4. cxd5 {[%clk 0:03:01.6]} 4... exd5 {[%clk 0:02:59]} 5. d4 {[%clk 0:03:02.3]}
5... c6 {[%clk 0:02:59.6]} 6. Bf4 {[%clk 0:03:02.4]} 6... Bd6 {[%clk 0:02:50.2]}
7. Bxd6 {[%clk 0:03:02.2]} 7... Qxd6 {[%clk 0:02:49.6]} 8. e3 {[%clk 0:03:03.1]}
8... O-O {[%clk 0:02:49.4]} 9. Qb3 {[%clk 0:03:01.9]} 9... b6 {[%clk 0:02:48.3]}
10. Bd3 {[%clk 0:03:00.8]} 10... Ba6 {[%clk 0:02:47.4]} 11. Bxa6 {[%clk
0:02:58.1]} 11... Nxa6 {[%clk 0:02:48.3]} 12. O-O {[%clk 0:02:58.2]} 12... Nc7
{[%clk 0:02:42.1]} 13. Rac1 {[%clk 0:02:57.9]} 13... Rac8 {[%clk 0:02:40.1]} 14.
Rfd1 {[%clk 0:02:55.8]} 14... Ne6 {[%clk 0:02:38]} 15. h3 {[%clk 0:02:47.7]}
15... h6 {[%clk 0:02:35.3]} 16. a4 {[%clk 0:02:45.2]} 16... Rc7 {[%clk
0:02:30.2]} 17. a5 {[%clk 0:02:43.6]} 17... Rb8 {[%clk 0:02:20]} 18. Ne5 {[%clk
0:02:20.9]} 18... Nd7 {[%clk 0:02:16]} 19. Nd3 {[%clk 0:02:12.7]} 19... bxa5
{[%clk 0:02:14.8]} 20. Qa2 {[%clk 0:02:13]} 20... Nb6 {[%clk 0:02:11.4]} 21.
Qxa5 {[%clk 0:02:08.8]} 21... Nc4 {[%clk 0:02:11.2]} 22. Qa2 {[%clk 0:02:08.9]}
22... Rcb7 {[%clk 0:02:10.2]} 23. Na4 {[%clk 0:02:04.9]} 23... Ng5 {[%clk
0:02:00.1]} 24. Rxc4 {[%clk 0:01:26.2]} 24... dxc4 {[%clk 0:01:57.6]} 25. Qxc4
{[%clk 0:01:27.1]} 25... Qg6 {[%clk 0:01:46.6]} 26. Kh1 {[%clk 0:01:17.8]} 26...
Ne4 {[%clk 0:01:46]} 27. Kg1 {[%clk 0:01:14.2]} 27... Qh5 {[%clk 0:01:41.6]} 28.
Qc2 {[%clk 0:01:12.2]} 28... Rb5 {[%clk 0:01:34.8]} 29. Nf4 {[%clk 0:01:11.3]}
29... Qf5 {[%clk 0:01:33.7]} 30. f3 {[%clk 0:01:06]} 30... Ng3 {[%clk 0:01:32]}
31. Qf2 {[%clk 0:00:53.2]} 31... Nh5 {[%clk 0:01:24.4]} 32. Nd3 {[%clk 0:00:48]}
32... Nf6 {[%clk 0:01:21.2]} 33. Nac5 {[%clk 0:00:46.1]} 33... Qc8 {[%clk
0:01:12.9]} 34. e4 {[%clk 0:00:46]} 34... Nd7 {[%clk 0:01:12.7]} 35. Na4 {[%clk
0:00:36.7]} 35... Rb3 {[%clk 0:01:10]} 36. Nc3 {[%clk 0:00:34.3]} 36... a5
{[%clk 0:00:57.7]} 37. Ra1 {[%clk 0:00:34.3]} 37... Qa6 {[%clk 0:00:56]} 38. Qc2
{[%clk 0:00:33.5]} 38... Qb6 {[%clk 0:00:51.6]} 39. Qf2 {[%clk 0:00:29.1]} 39...
Nf6 {[%clk 0:00:49.2]} 40. Kh1 {[%clk 0:00:27.8]} 40... Rd8 {[%clk 0:00:48.6]}
41. Ra4 {[%clk 0:00:18.4]} 41... Nd7 {[%clk 0:00:47.3]} 42. Qc2 {[%clk
0:00:14.4]} 42... Nf8 {[%clk 0:00:41.8]} 43. Ne2 {[%clk 0:00:14.7]} 43... Ne6
{[%clk 0:00:39.4]} 44. Rc4 {[%clk 0:00:14.7]} 44... Rb5 {[%clk 0:00:32.9]} 45.
Rxc6 {[%clk 0:00:14.3]} 45... Qa7 {[%clk 0:00:32.7]} 46. d5 {[%clk 0:00:14]}
46... Nd4 {[%clk 0:00:32.9]} 47. Nxd4 {[%clk 0:00:13.7]} 47... Qxd4 {[%clk
0:00:33.8]} 48. Rc4 {[%clk 0:00:12]} 48... Qe3 {[%clk 0:00:30.7]} 49. Rc3 {[%clk
0:00:12.5]} 49... Qb6 {[%clk 0:00:27.2]} 50. Rc6 {[%clk 0:00:08.5]} 50... Qb8
{[%clk 0:00:26.4]} 51. Rc4 {[%clk 0:00:05.2]} 51... Rb7 {[%clk 0:00:21]} 52. Qc3
{[%clk 0:00:04.5]} 52... Rb3 {[%clk 0:00:20.5]} 53. Qd4 {[%clk 0:00:05]} 53...
Rc8 {[%clk 0:00:18.8]} 54. Rxc8+ {[%clk 0:00:03.3]} 54... Qxc8 {[%clk
0:00:19.7]} 55. d6 {[%clk 0:00:04.2]} 55... Qa6 {[%clk 0:00:19.4]} 56. d7 {[%clk
0:00:02.3]} 56... Rb8 {[%clk 0:00:14.7]} 57. d8=Q+ {[%clk 0:00:02.9]} 57... Rxd8
{[%clk 0:00:15.1]} 58. Qxd8+ {[%clk 0:00:03.8]} 58... Kh7 {[%clk 0:00:15.7]} 59.
Qd4 {[%clk 0:00:04.5]} 59... Qb5 {[%clk 0:00:16]} 60. Qc3 {[%clk 0:00:04.7]}
60... a4 {[%clk 0:00:15.8]} 61. Qc2 {[%clk 0:00:05]} 61... g6 {[%clk 0:00:15.8]}
62. Nc5 {[%clk 0:00:03.8]} 62... Qf1+ {[%clk 0:00:15.8]} 63. Kh2 {[%clk
0:00:04.4]} 63... Qb5 {[%clk 0:00:16.1]} 64. Nxa4 {[%clk 0:00:04.6]} 64... Qe5+
{[%clk 0:00:17]} 65. Kg1 {[%clk 0:00:05]} 65... Qd4+ {[%clk 0:00:17.3]} 66. Kf1
{[%clk 0:00:04.8]} 66... Qe5 {[%clk 0:00:17.8]} 67. Nc3 {[%clk 0:00:04.7]} 67...
Qh2 {[%clk 0:00:18]} 68. Ne2 {[%clk 0:00:04.8]} 68... Qh1+ {[%clk 0:00:18.4]}
69. Ng1 {[%clk 0:00:04.8]} 69... Qh2 {[%clk 0:00:19.2]} 70. b4 {[%clk
0:00:04.4]} 70... Qe5 {[%clk 0:00:19.4]} 71. Qd2 {[%clk 0:00:04.9]} 71... Qb5+
{[%clk 0:00:19.6]} 72. Ne2 {[%clk 0:00:05.5]} 72... Qa4 {[%clk 0:00:20.2]} 73.
Kf2 {[%clk 0:00:05.8]} 73... Qa7+ {[%clk 0:00:20.3]} 74. Nd4 {[%clk 0:00:05.5]}
74... Qb7 {[%clk 0:00:21.2]} 75. b5 {[%clk 0:00:05.6]} 75... Qe7 {[%clk
0:00:21.2]} 76. Qb2 {[%clk 0:00:05]} 76... Qh4+ {[%clk 0:00:22.1]} 77. Kf1
{[%clk 0:00:05.1]} 77... Qf4 {[%clk 0:00:21.7]} 78. b6 {[%clk 0:00:05]} 78...
Qe3 {[%clk 0:00:22.3]} 79. b7 {[%clk 0:00:05]} 79... Qd3+ {[%clk 0:00:23]} 80.
Ne2 {[%clk 0:00:04.7]} 80... Qd1+ {[%clk 0:00:22.8]} 81. Kf2 {[%clk 0:00:05.2]}
1-0

[Event "Late-Titled-Tuesday-Blitz-December-26-2023"]
[Site "Chess.com"]
[Date "2023.12.26"]
[Round "6"]
[White "Veleamater"]
[Black "Slovak_fighter2000"]
[Result "0-1"]
[WhiteElo "2352"]
[BlackElo "2489"]
[TimeControl "180+1"]
[EndTime "15:08:26 PST"]
[Termination "Slovak_fighter2000 won by checkmate"]

1. g3 {[%clk 0:03:00.9]} 1... e5 {[%clk 0:02:57.8]} 2. Bg2 {[%clk 0:03:01.4]}
2... Nc6 {[%clk 0:02:54.7]} 3. d3 {[%clk 0:03:01.8]} 3... f5 {[%clk 0:02:54.6]}
4. Nf3 {[%clk 0:03:02]} 4... Nf6 {[%clk 0:02:54.3]} 5. O-O {[%clk 0:03:02.6]}
5... Bc5 {[%clk 0:02:54]} 6. Nc3 {[%clk 0:03:03]} 6... d6 {[%clk 0:02:54.2]} 7.
e4 {[%clk 0:03:02.9]} 7... O-O {[%clk 0:02:54.2]} 8. exf5 {[%clk 0:03:03.2]}
8... Bxf5 {[%clk 0:02:54.1]} 9. Nh4 {[%clk 0:03:03.6]} 9... Bg4 {[%clk
0:02:52.3]} 10. Qd2 {[%clk 0:03:01.5]} 10... Qd7 {[%clk 0:02:50.8]} 11. Ne4
{[%clk 0:03:00]} 11... Bb6 {[%clk 0:02:46.9]} 12. Kh1 {[%clk 0:02:53.1]} 12...
Bh3 {[%clk 0:02:33]} 13. f4 {[%clk 0:02:49.9]} 13... Nxe4 {[%clk 0:02:27.7]} 14.
dxe4 {[%clk 0:02:48.8]} 14... exf4 {[%clk 0:02:28]} 15. gxf4 {[%clk 0:02:45.8]}
15... Qg4 {[%clk 0:02:26.8]} 16. Bxh3 {[%clk 0:02:38.8]} 16... Qxh3 {[%clk
0:02:25.1]} 17. Ng2 {[%clk 0:02:37.2]} 17... Rae8 {[%clk 0:02:10.5]} 18. Qd3
{[%clk 0:02:36.7]} 18... Qxd3 {[%clk 0:01:54.2]} 19. cxd3 {[%clk 0:02:36.6]}
19... d5 {[%clk 0:01:55.1]} 20. e5 {[%clk 0:02:34]} 20... Nxe5 {[%clk
0:01:52.6]} 21. f5 {[%clk 0:02:19.2]} 21... Nxd3 {[%clk 0:01:51.3]} 22. h4
{[%clk 0:02:04]} 22... Nf2+ {[%clk 0:01:48.3]} 23. Kh2 {[%clk 0:02:03.8]} 23...
Rxf5 {[%clk 0:01:48.9]} 24. Bd2 {[%clk 0:01:54.9]} 24... Re2 {[%clk 0:01:07.9]}
25. Bf4 {[%clk 0:01:45.1]} 25... Nd3 {[%clk 0:00:54.4]} 26. Bg3 {[%clk 0:01:43]}
26... Rxf1 {[%clk 0:00:53.5]} 27. Rxf1 {[%clk 0:01:42.4]} 27... Bf2 {[%clk
0:00:49.9]} 28. Bxc7 {[%clk 0:01:39.2]} 28... Bxh4 {[%clk 0:00:19]} 29. Kh3
{[%clk 0:01:35]} 29... Bf6 {[%clk 0:00:18.6]} 30. Kg3 {[%clk 0:01:14.2]} 30...
Rxb2 {[%clk 0:00:17.3]} 31. Rd1 {[%clk 0:01:13.1]} 31... Nc5 {[%clk 0:00:14.1]}
32. Rxd5 {[%clk 0:01:12.5]} 32... Ne4+ {[%clk 0:00:14.5]} 33. Kh3 {[%clk
0:01:05.4]} 33... Nc3 {[%clk 0:00:14.5]} 34. Rd7 {[%clk 0:01:01.3]} 34... Rxa2
{[%clk 0:00:14.3]} 35. Ne3 {[%clk 0:00:56.8]} 35... Ra3 {[%clk 0:00:12.6]} 36.
Nf5 {[%clk 0:00:56.8]} 36... Nd5+ {[%clk 0:00:11.1]} 37. Kg4 {[%clk 0:00:53.4]}
37... Nxc7 {[%clk 0:00:11.5]} 38. Rxc7 {[%clk 0:00:53.1]} 38... h6 {[%clk
0:00:11.5]} 39. Nd6 {[%clk 0:00:51.7]} 39... Kh7 {[%clk 0:00:11.4]} 40. Ne8
{[%clk 0:00:51.1]} 40... Kg6 {[%clk 0:00:10.8]} 41. Rxb7 {[%clk 0:00:50.8]}
41... Ra4+ {[%clk 0:00:10.9]} 42. Kf3 {[%clk 0:00:51]} 42... Ra3+ {[%clk
0:00:10.8]} 43. Ke4 {[%clk 0:00:50.6]} 43... h5 {[%clk 0:00:10.8]} 44. Nd6
{[%clk 0:00:43]} 44... h4 {[%clk 0:00:10.9]} 45. Rb8 {[%clk 0:00:42.7]} 45... h3
{[%clk 0:00:10.9]} 46. Rh8 {[%clk 0:00:42.5]} 46... a5 {[%clk 0:00:10.9]} 47.
Nf5 {[%clk 0:00:41.6]} 47... a4 {[%clk 0:00:09.8]} 48. Ne3 {[%clk 0:00:41]}
48... Rb3 {[%clk 0:00:07.1]} 49. Nc4 {[%clk 0:00:27.2]} 49... a3 {[%clk
0:00:06.7]} 50. Nd2 {[%clk 0:00:27.3]} 50... Rb4+ {[%clk 0:00:05.7]} 51. Kf3
{[%clk 0:00:18.8]} 51... a2 {[%clk 0:00:06.1]} 52. Ra8 {[%clk 0:00:15.4]} 52...
Rb2 {[%clk 0:00:05.9]} 53. Nf1 {[%clk 0:00:11.5]} 53... Rb3+ {[%clk 0:00:06.2]}
54. Kg4 {[%clk 0:00:10.1]} 54... a1=Q {[%clk 0:00:07.1]} 55. Rxa1 {[%clk
0:00:04.7]} 55... Bxa1 {[%clk 0:00:08]} 56. Nh2 {[%clk 0:00:04.2]} 56... Bf6
{[%clk 0:00:07.9]} 57. Nf1 {[%clk 0:00:02]} 57... Kf7 {[%clk 0:00:07.6]} 58. Nh2
{[%clk 0:00:02.1]} 58... Ke6 {[%clk 0:00:07.9]} 59. Nf1 {[%clk 0:00:02.5]} 59...
Be5 {[%clk 0:00:08.4]} 60. Nd2 {[%clk 0:00:02.5]} 60... Rb4+ {[%clk 0:00:08.1]}
61. Kf3 {[%clk 0:00:02.3]} 61... h2 {[%clk 0:00:08]} 62. Kg2 {[%clk 0:00:02.4]}
62... Rb2 {[%clk 0:00:08.3]} 63. Kh1 {[%clk 0:00:02.9]} 63... Bf4 {[%clk
0:00:06.8]} 64. Nf3 {[%clk 0:00:02.6]} 64... Rb1+ {[%clk 0:00:06.1]} 65. Ne1
{[%clk 0:00:02.4]} 65... Rxe1+ {[%clk 0:00:05.9]} 66. Kg2 {[%clk 0:00:03.3]}
66... h1=Q+ {[%clk 0:00:06.5]} 67. Kf2 {[%clk 0:00:04.2]} 67... Qf1# {[%clk
0:00:05.5]} 0-1

[Event "Late-Titled-Tuesday-Blitz-December-26-2023"]
[Site "Chess.com"]
[Date "2023.12.26"]
[Round "6"]
[White "ExchangeAB"]
[Black "IlanSchnaider"]
[Result "1/2-1/2"]
[WhiteElo "2503"]
[BlackElo "2671"]
[TimeControl "180+1"]
[EndTime "15:08:27 PST"]
[Termination "Game drawn by stalemate"]

1. Nf3 {[%clk 0:03:00.9]} 1... Nf6 {[%clk 0:02:58.9]} 2. g3 {[%clk 0:03:00.7]}
2... g6 {[%clk 0:02:54.2]} 3. Bg2 {[%clk 0:03:00.6]} 3... Bg7 {[%clk 0:02:54.8]}
4. O-O {[%clk 0:03:01.3]} 4... O-O {[%clk 0:02:55.4]} 5. c4 {[%clk 0:03:02]}
5... d5 {[%clk 0:02:55.6]} 6. cxd5 {[%clk 0:03:01.3]} 6... Nxd5 {[%clk
0:02:56.5]} 7. Nc3 {[%clk 0:03:01.8]} 7... Nc6 {[%clk 0:02:55.5]} 8. a3 {[%clk
0:02:54.7]} 8... e5 {[%clk 0:02:54.9]} 9. d3 {[%clk 0:02:53.1]} 9... Nxc3 {[%clk
0:02:49.5]} 10. bxc3 {[%clk 0:02:53]} 10... e4 {[%clk 0:02:50.2]} 11. dxe4
{[%clk 0:02:38.5]} 11... Bxc3 {[%clk 0:02:49.1]} 12. Rb1 {[%clk 0:02:36.7]}
12... b6 {[%clk 0:02:38.4]} 13. Bh6 {[%clk 0:02:32.7]} 13... Bg7 {[%clk
0:02:30.4]} 14. Bxg7 {[%clk 0:02:30.1]} 14... Kxg7 {[%clk 0:02:31.3]} 15. Qc2
{[%clk 0:02:29.9]} 15... Bb7 {[%clk 0:02:30.2]} 16. Qc3+ {[%clk 0:02:27.6]}
16... Kg8 {[%clk 0:02:29.9]} 17. Rfc1 {[%clk 0:02:27.1]} 17... Qe7 {[%clk
0:02:29.7]} 18. Nd4 {[%clk 0:02:24.2]} 18... Nxd4 {[%clk 0:02:28.8]} 19. Qxd4
{[%clk 0:02:25.1]} 19... c5 {[%clk 0:02:29.1]} 20. Qc4 {[%clk 0:02:14.8]} 20...
Rfe8 {[%clk 0:02:28.2]} 21. f3 {[%clk 0:02:10.8]} 21... Rad8 {[%clk 0:02:28.7]}
22. Rd1 {[%clk 0:02:08.8]} 22... Bc6 {[%clk 0:02:17.8]} 23. Kf2 {[%clk
0:02:05.8]} 23... Rxd1 {[%clk 0:02:13.8]} 24. Rxd1 {[%clk 0:02:05.3]} 24... Rd8
{[%clk 0:02:14.6]} 25. Rd3 {[%clk 0:02:01.2]} 25... h5 {[%clk 0:02:08.9]} 26. h4
{[%clk 0:01:53.4]} 26... Qf6 {[%clk 0:01:56.7]} 27. e5 {[%clk 0:01:45.5]} 27...
Qe7 {[%clk 0:01:46.8]} 28. f4 {[%clk 0:01:43.9]} 28... Bxg2 {[%clk 0:01:42.4]}
29. Kxg2 {[%clk 0:01:44.8]} 29... Qb7+ {[%clk 0:01:42.4]} 30. Kf2 {[%clk
0:01:37.4]} 30... Rxd3 {[%clk 0:01:40]} 31. exd3 {[%clk 0:01:37.4]} 31... Qd7
{[%clk 0:01:38.3]} 32. Ke3 {[%clk 0:01:31.6]} 32... Kf8 {[%clk 0:01:38.3]} 33.
Qe4 {[%clk 0:01:24.7]} 33... Qh3 {[%clk 0:01:31.9]} 34. Qa8+ {[%clk 0:01:21.4]}
34... Kg7 {[%clk 0:01:31.8]} 35. Qf3 {[%clk 0:01:05.9]} 35... Qh2 {[%clk
0:01:28.4]} 36. f5 {[%clk 0:01:01.4]} 36... Qg1+ {[%clk 0:01:27.2]} 37. Kd2
{[%clk 0:00:59.7]} 37... gxf5 {[%clk 0:00:40.6]} 38. Qxf5 {[%clk 0:00:56.4]}
38... Qxg3 {[%clk 0:00:34.3]} 39. Qxh5 {[%clk 0:00:47.9]} 39... Qf4+ {[%clk
0:00:34.3]} 40. Kc2 {[%clk 0:00:44.8]} 40... b5 {[%clk 0:00:30.9]} 41. Qe2
{[%clk 0:00:32.4]} 41... Qxh4 {[%clk 0:00:28.6]} 42. e6 {[%clk 0:00:31.5]} 42...
Qa4+ {[%clk 0:00:26.7]} 43. Kb2 {[%clk 0:00:29.5]} 43... Qd4+ {[%clk 0:00:26.9]}
44. Kc2 {[%clk 0:00:28]} 44... Qa4+ {[%clk 0:00:14.9]} 45. Kb2 {[%clk
0:00:27.7]} 45... Qd4+ {[%clk 0:00:13.8]} 46. Kc2 {[%clk 0:00:27.9]} 46... fxe6
{[%clk 0:00:14.5]} 47. Qxe6 {[%clk 0:00:28.2]} 47... c4 {[%clk 0:00:12.6]} 48.
Qe7+ {[%clk 0:00:26.4]} 48... Kg6 {[%clk 0:00:11.6]} 49. Qe6+ {[%clk 0:00:26.6]}
49... Kg5 {[%clk 0:00:11.6]} 50. Qe7+ {[%clk 0:00:25.9]} 50... Kf5 {[%clk
0:00:10.9]} 51. Qf7+ {[%clk 0:00:25.1]} 51... Ke5 {[%clk 0:00:10.6]} 52. Qe7+
{[%clk 0:00:24.8]} 52... Kf4 {[%clk 0:00:07.8]} 53. Qf7+ {[%clk 0:00:23.3]}
53... Ke3 {[%clk 0:00:07.4]} 54. Qe6+ {[%clk 0:00:22.9]} 54... Kf3 {[%clk
0:00:07]} 55. Qf7+ {[%clk 0:00:22.9]} 55... Ke2 {[%clk 0:00:07.2]} 56. Qe6+
{[%clk 0:00:21.9]} 56... Kf1 {[%clk 0:00:03.6]} 57. Qf5+ {[%clk 0:00:20.7]}
57... Kg2 {[%clk 0:00:03.6]} 58. Qg6+ {[%clk 0:00:16.8]} 58... Kf3 {[%clk
0:00:03.2]} 59. Qf5+ {[%clk 0:00:16.3]} 59... Ke3 {[%clk 0:00:03.3]} 60. Qe6+
{[%clk 0:00:16.1]} 60... Kf4 {[%clk 0:00:03.6]} 61. Qf7+ {[%clk 0:00:16.1]}
61... Kg5 {[%clk 0:00:04]} 62. Qg8+ {[%clk 0:00:16.2]} 62... Kh6 {[%clk
0:00:03.8]} 63. Qf8+ {[%clk 0:00:16]} 63... Kh7 {[%clk 0:00:03.5]} 64. Qf7+
{[%clk 0:00:16.1]} 64... Kh6 {[%clk 0:00:03.8]} 65. Qe6+ {[%clk 0:00:16.4]}
65... Kg5 {[%clk 0:00:02.9]} 66. Qe7+ {[%clk 0:00:15.9]} 66... Qf6 {[%clk
0:00:01.7]} 67. Qxf6+ {[%clk 0:00:15.7]} 67... Kxf6 {[%clk 0:00:01.8]} 68. dxc4
{[%clk 0:00:16.6]} 68... bxc4 {[%clk 0:00:02]} 69. Kc3 {[%clk 0:00:17.5]} 69...
Ke5 {[%clk 0:00:01.7]} 70. Kxc4 {[%clk 0:00:18.4]} 70... Kd6 {[%clk 0:00:02.6]}
71. Kb5 {[%clk 0:00:18.8]} 71... Kc7 {[%clk 0:00:03.2]} 72. Ka6 {[%clk
0:00:19.2]} 72... Kb8 {[%clk 0:00:04.1]} 73. a4 {[%clk 0:00:19.7]} 73... Ka8
{[%clk 0:00:04.8]} 74. Kb5 {[%clk 0:00:20.6]} 74... Kb8 {[%clk 0:00:05.7]} 75.
a5 {[%clk 0:00:21.4]} 75... Kb7 {[%clk 0:00:06.5]} 76. a6+ {[%clk 0:00:21.4]}
76... Kb8 {[%clk 0:00:06.2]} 77. Kc6 {[%clk 0:00:21.7]} 77... Kc8 {[%clk
0:00:06.8]} 78. Kd6 {[%clk 0:00:22.2]} 78... Kd8 {[%clk 0:00:07.4]} 79. Kc6
{[%clk 0:00:22.7]} 79... Kc8 {[%clk 0:00:08.1]} 80. Kd6 {[%clk 0:00:23.3]} 80...
Kb8 {[%clk 0:00:08.3]} 81. Kc6 {[%clk 0:00:24.2]} 81... Ka8 {[%clk 0:00:08.9]}
82. Kd7 {[%clk 0:00:23.7]} 82... Kb8 {[%clk 0:00:09.1]} 83. Kd8 {[%clk
0:00:24.2]} 83... Ka8 {[%clk 0:00:10]} 84. Kc8 {[%clk 0:00:24.6]} 1/2-1/2

[Event "Late-Titled-Tuesday-Blitz-December-26-2023"]
[Site "Chess.com"]
[Date "2023.12.26"]
[Round "6"]
[White "chessajedrezz2020"]
[Black "prime-morty"]
[Result "0-1"]
[WhiteElo "2768"]
[BlackElo "2561"]
[TimeControl "180+1"]
[EndTime "15:08:32 PST"]
[Termination "prime-morty won on time"]

1. Nf3 {[%clk 0:02:56]} 1... d6 {[%clk 0:02:59.8]} 2. d4 {[%clk 0:02:53.1]} 2...
g6 {[%clk 0:03:00.3]} 3. g3 {[%clk 0:02:51.1]} 3... Bg7 {[%clk 0:03:00.9]} 4.
Bg2 {[%clk 0:02:51.3]} 4... e5 {[%clk 0:03:01.5]} 5. dxe5 {[%clk 0:02:48.8]}
5... dxe5 {[%clk 0:03:02.4]} 6. Qxd8+ {[%clk 0:02:48.6]} 6... Kxd8 {[%clk
0:03:03.3]} 7. Nc3 {[%clk 0:02:47.2]} 7... f6 {[%clk 0:03:03.4]} 8. Be3 {[%clk
0:02:42.2]} 8... Be6 {[%clk 0:02:52.3]} 9. O-O-O+ {[%clk 0:02:37.4]} 9... Nd7
{[%clk 0:02:51.1]} 10. Ne4 {[%clk 0:02:18.5]} 10... Kc8 {[%clk 0:02:48]} 11. Rd2
{[%clk 0:01:21.2]} 11... Bh6 {[%clk 0:02:46]} 12. Bxh6 {[%clk 0:01:16.6]} 12...
Nxh6 {[%clk 0:02:46.9]} 13. Rxd7 {[%clk 0:01:06.2]} 13... Bxd7 {[%clk
0:02:45.7]} 14. Nxf6 {[%clk 0:01:06.8]} 14... Bc6 {[%clk 0:02:36.5]} 15. Bh3+
{[%clk 0:00:56.7]} 15... Kd8 {[%clk 0:02:36.5]} 16. Rd1+ {[%clk 0:00:50]} 16...
Ke7 {[%clk 0:02:36.6]} 17. Nd5+ {[%clk 0:00:49.1]} 17... Bxd5 {[%clk 0:02:36.8]}
18. Rxd5 {[%clk 0:00:48.8]} 18... Rad8 {[%clk 0:02:35]} 19. Rxe5+ {[%clk
0:00:48.8]} 19... Kf6 {[%clk 0:02:35.5]} 20. Re6+ {[%clk 0:00:47.8]} 20... Kf7
{[%clk 0:02:29.3]} 21. Ng5+ {[%clk 0:00:41.5]} 21... Kf8 {[%clk 0:02:29.5]} 22.
e4 {[%clk 0:00:31.2]} 22... Rd6 {[%clk 0:02:29.3]} 23. e5 {[%clk 0:00:23.4]}
23... Rxe6 {[%clk 0:02:15.8]} 24. Nxe6+ {[%clk 0:00:23.4]} 24... Ke7 {[%clk
0:02:15.4]} 25. Nxc7 {[%clk 0:00:24.3]} 25... Rd8 {[%clk 0:02:12.4]} 26. c4
{[%clk 0:00:23.1]} 26... Rd4 {[%clk 0:02:06.2]} 27. Nd5+ {[%clk 0:00:21.6]}
27... Kf8 {[%clk 0:01:59.1]} 28. b3 {[%clk 0:00:19.9]} 28... Nf5 {[%clk
0:01:57.3]} 29. Bxf5 {[%clk 0:00:09.9]} 29... gxf5 {[%clk 0:01:57.4]} 30. e6
{[%clk 0:00:09.7]} 30... b5 {[%clk 0:01:55.5]} 31. e7+ {[%clk 0:00:04.3]} 31...
Ke8 {[%clk 0:01:55.6]} 32. Nc7+ {[%clk 0:00:04.8]} 32... Kxe7 {[%clk 0:01:55]}
33. Nxb5 {[%clk 0:00:05.7]} 33... Rd3 {[%clk 0:01:53]} 34. Nxa7 {[%clk
0:00:05.1]} 34... Rf3 {[%clk 0:01:53.2]} 35. Nc6+ {[%clk 0:00:03.9]} 35... Kd6
{[%clk 0:01:52.2]} 36. Nd4 {[%clk 0:00:03.8]} 36... Rxf2 {[%clk 0:01:52.6]} 37.
h4 {[%clk 0:00:03.5]} 37... Kc5 {[%clk 0:01:47.6]} 38. Nc2 {[%clk 0:00:04.1]}
38... Rf3 {[%clk 0:01:42.3]} 39. Kd2 {[%clk 0:00:02.2]} 39... Rxg3 {[%clk
0:01:42.6]} 40. Ne3 {[%clk 0:00:02]} 40... f4 {[%clk 0:01:42.1]} 41. Nf5 {[%clk
0:00:02.2]} 41... Rg2+ {[%clk 0:01:41.5]} 42. Kc3 {[%clk 0:00:02.4]} 42... Rxa2
{[%clk 0:01:41.6]} 43. b4+ {[%clk 0:00:02.7]} 43... Kb6 {[%clk 0:01:41.7]} 44.
Kd4 {[%clk 0:00:03.1]} 44... f3 {[%clk 0:01:41]} 45. Ng3 {[%clk 0:00:02.4]}
45... f2 {[%clk 0:01:38.2]} 46. Ke3 {[%clk 0:00:01.9]} 46... Rb2 {[%clk
0:01:36.7]} 47. Nf1 {[%clk 0:00:01.9]} 47... Kc6 {[%clk 0:01:30.8]} 48. Kf3
{[%clk 0:00:02.2]} 48... Rxb4 {[%clk 0:01:29.1]} 49. Kxf2 {[%clk 0:00:01.9]}
49... Rxc4 {[%clk 0:01:29.6]} 50. Kg3 {[%clk 0:00:02.7]} 50... Kd6 {[%clk
0:01:26.5]} 51. Nd2 {[%clk 0:00:02.7]} 51... Rb4 {[%clk 0:01:24.2]} 52. Nf3
{[%clk 0:00:02.8]} 52... h6 {[%clk 0:01:23.3]} 53. Nd2 {[%clk 0:00:01.1]} 53...
Ke6 {[%clk 0:01:23.5]} 54. Nf3 {[%clk 0:00:01.6]} 54... Kf5 {[%clk 0:01:23.4]}
55. Nd2 {[%clk 0:00:01.1]} 55... Rd4 {[%clk 0:01:22.3]} 56. Nf3 {[%clk
0:00:01.6]} 56... Rd3 {[%clk 0:01:22.6]} 57. Kg2 {[%clk 0:00:02.1]} 57... Ke4
{[%clk 0:01:17.8]} 58. Ng1 {[%clk 0:00:02.5]} 58... Kf4 {[%clk 0:01:15.4]} 59.
Ne2+ {[%clk 0:00:02.1]} 59... Kg4 {[%clk 0:01:15.6]} 60. h5 {[%clk 0:00:02.5]}
60... Re3 {[%clk 0:01:13]} 61. Kf2 {[%clk 0:00:02.7]} 61... Rf3+ {[%clk
0:01:13.4]} 62. Kg2 {[%clk 0:00:03.2]} 62... Re3 {[%clk 0:01:12.6]} 63. Kf2
{[%clk 0:00:03.4]} 63... Re5 {[%clk 0:01:12.8]} 64. Ng3 {[%clk 0:00:03.4]} 64...
Ra5 {[%clk 0:01:11.8]} 65. Nf1 {[%clk 0:00:03.5]} 65... Kxh5 {[%clk 0:01:11.6]}
66. Kg3 {[%clk 0:00:03.2]} 66... Ra3+ {[%clk 0:01:11.3]} 67. Kg2 {[%clk
0:00:02.1]} 67... Kg4 {[%clk 0:01:11.1]} 68. Nh2+ {[%clk 0:00:02.7]} 68... Kf4
{[%clk 0:01:11.5]} 69. Nf1 {[%clk 0:00:02.9]} 69... h5 {[%clk 0:01:11.9]} 70.
Kh2 {[%clk 0:00:03]} 70... h4 {[%clk 0:01:12.2]} 71. Kg2 {[%clk 0:00:02.6]}
71... Rb3 {[%clk 0:01:11.6]} 72. Kh2 {[%clk 0:00:01.4]} 72... Kg4 {[%clk
0:01:11.2]} 73. Kg2 {[%clk 0:00:01]} 73... Rb2+ {[%clk 0:01:11.6]} 74. Kg1
{[%clk 0:00:01.7]} 74... Kf3 {[%clk 0:01:00.4]} 75. Nh2+ {[%clk 0:00:01.7]}
75... Kg3 {[%clk 0:00:59.9]} 76. Nf1+ {[%clk 0:00:02.3]} 76... Kh3 {[%clk
0:01:00.1]} 77. Ne3 {[%clk 0:00:02.9]} 77... Rb3 {[%clk 0:00:55.9]} 78. Nf1
{[%clk 0:00:03.2]} 78... Rb1 {[%clk 0:00:51.9]} 79. Kf2 {[%clk 0:00:02.6]} 79...
Rb2+ {[%clk 0:00:51.2]} 80. Kg1 {[%clk 0:00:02.8]} 80... Rg2+ {[%clk 0:00:51.2]}
81. Kh1 {[%clk 0:00:03.4]} 81... Re2 {[%clk 0:00:50.5]} 82. Kg1 {[%clk
0:00:03.5]} 82... Kg4 {[%clk 0:00:46.5]} 83. Nh2+ {[%clk 0:00:03.7]} 83... Kf4
{[%clk 0:00:46.8]} 84. Nf1 {[%clk 0:00:03.8]} 84... h3 {[%clk 0:00:46.9]} 0-1